bitfinex/quotes_ETHUSD_20250801
["timestamp","ask_amount","ask_price","bid_price","bid_amount"]
[1754033688064,63.93058579,3636.2,3634.1,0.3407]
[1754033689296,64.18290788,3636.2,3633.9,0.0204]
[1754033689488,51.93255659,3636.2,3634.5,0.3407]
[1754033689792,29.63358579,3636.2,3634.2,0.3407]
[1754033689991,17.63555659,3636.2,3634.6,0.3407]
[1754033690300,21.93255659,3636.2,3634.6,0.3407]
[1754033690468,19.18243284,3636.2,3634.6,0.3407]
[1754033690668,19.18243284,3636.2,3634.8,0.3407]
[1754033690866,9.58633284,3636.2,3634.8,2.7511195]
[1754033691099,11.0426,3636.2,3635.3,0.0204]
[1754033691293,12.6239,3636.2,3634.8,0.3407]
[1754033691662,18.92402375,3636.2,3634.8,0.3407]
[1754033691982,0.55,3635.5,3634.2,0.1376]
[1754033692180,4.297,3635.4,3634.2,0.5007]
[1754033692378,0.4297,3635.3,3634.3,0.3407]
[1754033692697,4.297,3635.2,3634.3,0.3407]
[1754033692900,0.1376,3634.4,3634.3,0.3407]
[1754033693066,4.4336,3634.4,3634.3,0.3407]
[1754033693266,4.4336,3634.4,3634.3,0.3631]
[1754033693469,4.4336,3634.4,3634.3,6.11466151]
[1754033693990,2.75009907,3636.3,3634.3,6.11466151]
[1754033693991,1.1226,3636.1,3634.4,3.0]
[1754033694203,0.1376,3634.7,3634.5,0.3631]
[1754033694428,0.1376,3634.7,3634.6,5.75133439]
[1754033694626,4.4336,3634.7,3634.6,6.09203439]
[1754033694833,0.1376,3634.7,3634.6,6.09203439]
[1754033695050,4.4336,3634.7,3634.6,6.11443439]
[1754033697199,4.4336,3634.7,3634.6,3.11443439]
[1754033697549,4.4336,3634.7,3634.6,6.11443439]
[1754033697714,4.4336,3634.7,3634.6,3.3407]
[1754033698633,4.4336,3634.7,3634.6,6.09203439]
[1754033699035,4.4336,3634.7,3634.6,3.3407]
[1754033699236,4.4336,3634.7,3634.6,6.09203439]
[1754033699441,4.4336,3634.7,3634.6,3.3631]
[1754033699735,4.4336,3634.7,3634.6,6.11443439]
[1754033699940,0.1376,3634.7,3634.6,6.11443439]
[1754033700143,4.4326,3634.7,3634.6,6.11443439]
[1754033700312,0.1376,3635.3,3634.7,3.0]
[1754033700640,3.438,3637.6,3634.2,14.74962501]
[1754033700641,4.295,3635.2,3635.1,5.75095595]
[1754033700802,4.66794235,3637.5,3635.1,5.75095595]
[1754033700803,4.295,3635.7,3635.3,3.0]
[1754033701003,4.295,3636.0,3635.9,5.75035066]
[1754033701220,4.295,3636.0,3635.9,6.07475066]
[1754033701420,0.1376,3636.3,3636.0,5.75026271]
[1754033701722,0.203,3636.7,3636.6,5.74982126]
[1754033701952,0.203,3636.7,3636.6,6.05182126]
[1754033702481,0.2532951,3636.7,3636.3,0.302]
[1754033702781,4.296,3636.6,3636.5,5.74982774]
[1754033702980,4.296,3636.6,3636.5,6.05182774]
[1754033703144,4.296,3636.6,3636.2,0.302]
[1754033704053,0.25336457,3636.5,3635.7,3.0]
[1754033704251,1.1226,3636.5,3635.6,3.0]
[1754033704550,1.1226,3636.5,3635.9,3.0]
[1754033704949,1.1226,3636.5,3635.8,3.0]
[1754033705161,4.7256,3636.6,3635.8,2.75042085]
[1754033705361,0.25339054,3636.5,3635.6,0.302]
[1754033705560,4.294,3636.5,3635.9,2.75034702]
[1754033705759,0.001,3636.6,3636.0,0.302]
[1754033705960,0.001,3636.6,3636.1,2.75013716]
[1754033706286,4.294,3636.5,3636.0,0.302]
[1754033706661,4.294,3636.5,3635.7,5.77283249]
[1754033706966,4.294,3636.5,3636.0,3.0]
[1754033707406,4.294,3636.5,3635.8,0.302]
[1754033707549,1.1226,3636.4,3635.3,3.05279279]
[1754033707749,4.293,3636.3,3635.3,0.302]
[1754033707990,4.293,3636.3,3635.5,3.0]
[1754033708306,0.001,3636.6,3635.4,3.0]
[1754033708597,4.293,3636.2,3635.4,3.0]
[1754033709516,4.293,3636.2,3635.2,0.302]
[1754033709724,4.5813,3636.1,3634.6,0.302]
[1754033710019,4.5813,3636.1,3635.2,2.75085039]
[1754033710219,3.12973,3636.1,3635.1,2.75093122]
[1754033710370,4.293,3636.0,3634.9,0.302]
[1754033710570,6.61,3636.3,3635.1,11.9980292]
[1754033710817,6.61,3636.3,3635.7,11.9980292]
[1754033711018,4.294,3636.6,3635.8,3.35190426]
[1754033711169,4.294,3636.6,3636.5,2.74989687]
[1754033711374,4.294,3636.6,3636.2,3.0]
[1754033711569,4.294,3636.6,3636.1,2.75012522]
[1754033711799,4.294,3636.6,3635.7,11.9980292]
[1754033712003,4.294,3636.6,3636.4,2.74995712]
[1754033712202,4.294,3636.6,3636.2,2.75006141]
[1754033712513,4.294,3636.6,3636.3,2.75004812]
[1754033712673,0.001,3636.6,3636.3,2.75004812]
[1754033712873,0.001,3636.6,3636.2,0.1376]
[1754033712874,4.292,3636.5,3636.2,2.88771504]
[1754033713334,0.001,3636.6,3635.3,3.0]
[1754033713335,1.5813,3636.4,3635.3,3.0]
[1754033713552,1.5813,3636.4,3631.0,1.37405808]
[1754033713553,0.55,3636.2,3634.1,2.75164045]
[1754033713726,0.55,3636.2,3634.7,2.7512411]
[1754033713893,0.55,3636.2,3634.8,3.0]
[1754033714088,1.5813,3636.1,3634.8,3.0]
[1754033714321,8.369753,3636.0,3634.7,2.7512411]
[1754033714532,6.788453,3636.0,3634.7,2.7512411]
[1754033714838,6.788453,3636.0,3634.2,0.002]
[1754033714839,0.55,3635.8,3634.2,0.002]
[1754033715015,4.292,3635.7,3634.2,2.75361453]
[1754033715196,0.55,3635.8,3634.2,0.002]
[1754033715391,1.5813,3635.6,3634.2,0.002]
[1754033715627,1.5813,3635.6,3634.2,3.002]
[1754033715826,0.55,3635.6,3634.2,0.002]
[1754033716132,1.5813,3635.5,3634.2,0.002]
[1754033716330,0.55,3635.4,3634.2,0.002]
[1754033716541,0.55,3635.2,3634.2,0.002]
[1754033717037,1.5399,3635.1,3634.2,0.002]
[1754033717530,1.5399,3635.0,3634.2,0.002]
[1754033718030,0.55,3635.6,3634.2,0.002]
[1754033718209,1.0767,3635.4,3634.3,2.75156151]
[1754033718418,0.4632,3635.3,3634.3,0.30256615]
[1754033718599,1.0767,3635.2,3634.2,3.002]
[1754033718804,0.4632,3635.1,3634.2,3.002]
[1754033719130,1.0767,3635.6,3634.3,2.75150599]
[1754033719330,0.3729453,3635.7,3634.4,0.2721]
[1754033719331,1.0767,3635.7,3634.4,0.2721]
[1754033719632,1.0767,3635.7,3634.6,2.75127489]
[1754033719929,0.4632,3635.6,3634.5,2.75139158]
[1754033720317,1.0767,3635.5,3634.5,2.75139158]
[1754033721335,0.4632,3635.4,3634.4,3.0]
[1754033721639,0.55,3635.2,3634.2,0.002]
[1754033721941,0.20899,3635.1,3634.2,0.002]
[1754033722113,1.74889,3635.1,3634.2,0.002]
[1754033722314,0.55,3635.0,3634.2,0.002]
[1754033722528,2.0899,3635.0,3634.2,0.002]
[1754033722922,1.5399,3634.9,3634.2,0.002]
[1754033723513,0.1376,3634.3,3634.2,0.002]
[1754033723929,1.5399,3634.9,3634.2,0.002]
[1754033724140,0.1376,3634.4,3634.2,0.002]
[1754033724648,1.5399,3634.3,3634.2,0.002]
[1754033725904,0.1376,3634.4,3634.2,0.002]
[1754033726544,1.2143,3634.4,3634.2,0.002]
[1754033727404,1.0767,3634.3,3634.2,0.002]
[1754033727749,0.1376,3634.4,3634.2,0.002]
[1754033729609,1.0767,3634.8,3634.2,0.002]
[1754033729812,0.1376,3634.3,3634.2,0.002]
[1754033730255,0.1376,3634.3,3634.2,2.75363722]
[1754033730722,0.1376,3634.4,3634.3,2.75156151]
[1754033730924,1.5399,3635.2,3634.2,0.002]
[1754033731137,1.5399,3635.2,3634.8,2.75117959]
[1754033731312,0.1376,3634.9,3634.8,2.75117959]
[1754033731753,0.1376,3634.9,3634.8,5.75117959]
[1754033732429,0.4632,3635.6,3635.0,2.75100277]
[1754033732613,0.1376,3635.1,3635.0,2.75100277]
[1754033732816,0.1376,3635.1,3634.8,3.0]
[1754033733041,1.5399,3635.0,3634.3,2.75153417]
[1754033733213,0.4632,3635.0,3634.2,0.002]
[1754033733437,1.5399,3634.9,3634.2,0.002]
[1754033733633,1.5399,3634.9,3634.2,2.75363494]
[1754033733968,1.5399,3634.9,3634.2,0.002]
[1754033734122,1.0767,3634.9,3634.5,2.75135871]
[1754033734323,1.0767,3634.9,3634.4,2.7514617]
[1754033734520,1.0767,3634.9,3634.2,2.75362479]
[1754033734521,1.0767,3634.9,3634.8,2.751183]
[1754033734749,0.4632,3635.3,3634.8,2.751183]
[1754033734919,0.4632,3635.3,3634.6,2.75132852]
[1754033734920,1.0767,3635.5,3634.9,2.75103628]
[1754033735135,1.0767,3635.5,3634.3,0.2547]
[1754033735342,1.0767,3635.5,3635.0,2.75097679]
[1754033735541,0.001,3636.1,3634.3,0.2547]
[1754033735546,0.001,3636.1,3634.9,2.75108938]
[1754033735547,1.0767,3635.4,3634.9,2.75108938]
[1754033735761,1.5399,3635.3,3634.7,2.75121183]
[1754033736621,1.5399,3635.3,3634.2,0.002]
[1754033736622,0.55,3635.1,3634.2,0.002]
[1754033737159,1.5399,3635.2,3634.2,0.002]
[1754033737160,1.5399,3635.0,3634.2,0.002]
[1754033737623,0.55,3635.2,3634.2,0.002]
[1754033737624,1.5399,3634.9,3634.2,0.002]
[1754033738020,1.0767,3634.8,3634.2,0.002]
[1754033738551,0.4632,3634.7,3634.2,0.002]
[1754033738749,0.15399,3634.6,3634.2,0.002]
[1754033738951,1.23069,3634.6,3634.2,0.002]
[1754033739143,0.4632,3634.5,3634.2,0.002]
[1754033739607,1.5399,3634.4,3634.2,0.002]
[1754033739990,1.0767,3634.9,3634.3,2.75155239]
[1754033740182,1.0767,3634.9,3634.2,2.75361687]
[1754033740386,0.4632,3634.8,3634.2,0.002]
[1754033740589,0.61719,3634.8,3634.2,0.002]
[1754033740897,1.0767,3634.7,3634.2,0.002]
[1754033741110,1.5399,3634.7,3634.2,0.002]
[1754033741285,0.4632,3634.6,3634.2,0.002]
[1754033741471,1.5399,3634.6,3634.2,0.002]
[1754033741677,0.169389,3634.5,3634.2,0.002]
[1754033741892,0.169389,3634.5,3633.0,0.05]
[1754033741893,0.55,3634.4,3633.0,0.05]
[1754033742099,0.55,3634.2,3633.0,0.05]
[1754033742513,0.55,3634.0,3633.0,0.05]
[1754033742810,0.55,3634.0,3632.1,0.02]
[1754033742976,0.1376,3632.2,3632.1,0.02]
[1754033743173,0.1376,3632.2,3632.1,2.77322816]
[1754033743385,0.1376,3632.2,3632.1,0.02]
[1754033743813,1.0767,3633.0,3632.1,0.02]
[1754033744016,0.1376,3632.4,3632.1,2.77321492]
[1754033744221,1.0767,3632.8,3632.1,0.02]
[1754033744403,1.5399,3632.7,3632.1,0.02]
[1754033744603,1.5399,3632.6,3632.1,0.02]
[1754033744784,0.15399,3632.5,3632.1,0.02]
[1754033744986,1.5399,3632.4,3632.1,0.02]
[1754033745223,5.897,3633.7,3632.1,0.02]
[1754033745224,1.0767,3633.7,3632.2,11.9980292]
[1754033745524,1.5399,3633.6,3632.5,2.75292434]
[1754033745700,0.4632,3633.6,3632.4,5.75293168]
[1754033745895,1.0767,3633.5,3632.4,3.3313457]
[1754033746236,0.4632,3633.4,3632.1,0.02]
[1754033746382,0.4632,3633.4,3632.6,2.75281156]
[1754033746731,0.4632,3633.4,3632.1,0.2767]
[1754033746884,0.169389,3634.5,3632.1,0.2767]
[1754033746885,1.0878,3633.8,3632.4,3.0]
[1754033747081,1.0878,3633.8,3632.8,3.0]
[1754033747280,0.60972,3633.7,3632.8,3.0]
[1754033747588,0.60972,3633.7,3632.5,2.75292402]
[1754033747787,0.60972,3633.7,3632.8,2.75266983]
[1754033747987,0.60972,3633.7,3632.8,2.75268808]
[1754033748197,1.0878,3633.9,3632.4,3.5335]
[1754033748526,1.0878,3633.9,3632.2,2.75315235]
[1754033748527,1.0054,3633.8,3632.2,2.75315235]
[1754033748731,1.5432,3633.7,3632.3,3.0]
[1754033748903,3.30156151,3634.3,3632.3,3.0]
[1754033749103,1.5432,3633.6,3632.3,3.0]
[1754033749402,1.5432,3633.5,3632.3,2.75300855]
[1754033749587,1.0878,3633.4,3632.3,2.75300855]
[1754033750021,1.0878,3633.4,3632.4,3.0]
[1754033750224,1.0878,3633.4,3632.3,2.75302962]
[1754033750526,0.15432,3633.3,3632.3,2.75302962]
[1754033750721,0.15432,3633.3,3632.4,2.75298647]
[1754033750927,0.15432,3633.3,3632.3,2.75306046]
[1754033751099,0.15432,3633.3,3632.1,0.022]
[1754033751419,0.15432,3633.3,3632.4,2.75294384]
[1754033751718,0.169752,3633.2,3632.7,3.0]
[1754033751902,1.0878,3633.1,3632.3,3.0]
[1754033752298,1.0878,3633.1,3632.5,3.0]
[1754033752626,1.0878,3633.1,3632.7,3.0]
[1754033752827,1.5432,3633.5,3632.5,2.75285269]
[1754033753029,0.15432,3633.4,3632.6,3.0]
[1754033753326,1.0878,3633.3,3632.2,0.2788]
[1754033753528,0.4554,3633.2,3632.4,3.0]
[1754033753827,0.4554,3633.2,3632.1,0.022]
[1754033754125,1.0878,3633.1,3632.1,2.77520279]
[1754033754421,0.1376,3632.6,3632.2,2.75315221]
[1754033754629,0.1376,3632.6,3632.1,3.022]
[1754033754832,0.1376,3632.4,3632.3,3.0]
[1754033755001,0.1376,3632.4,3632.3,2.75307656]
[1754033755201,1.0878,3633.4,3632.7,3.0]
[1754033755407,0.1376,3632.8,3632.6,2.75284685]
[1754033755731,0.1376,3632.7,3632.6,2.75284919]
[1754033756693,1.0878,3633.4,3632.7,2.75270176]
[1754033756895,1.0878,3633.4,3632.8,3.0]
[1754033757089,0.1376,3632.8,3632.6,3.0]
[1754033757330,0.1376,3632.8,3632.5,2.75289808]
[1754033757331,1.2254,3632.8,3632.5,3.0]
[1754033757537,1.0878,3632.8,3632.3,2.75306041]
[1754033757846,0.1376,3632.6,3632.1,2.77520224]
[1754033758149,1.0878,3632.7,3632.2,3.0]
[1754033758376,1.24212,3632.7,3632.1,0.022]
[1754033758660,1.24212,3632.7,3632.2,2.75314332]
[1754033758852,0.1376,3632.3,3632.2,2.75314332]
[1754033759364,0.1376,3632.3,3632.1,3.022]
[1754033759554,0.1376,3632.3,3632.1,0.022]
[1754033759750,0.1376,3632.3,3632.1,2.77521384]
[1754033759964,0.1376,3632.3,3632.2,5.75315235]
[1754033760464,1.0878,3633.5,3632.3,2.75307656]
[1754033760628,0.1376,3633.0,3632.6,3.0]
[1754033760825,0.1376,3633.0,3632.8,2.75265356]
[1754033761263,0.1376,3633.4,3633.1,3.0]
[1754033761452,0.169389,3634.5,3633.6,2.75204161]
[1754033761654,0.1376,3633.7,3633.0,2.75254388]
[1754033761855,0.1376,3633.3,3632.7,0.1376]
[1754033762154,0.1376,3633.0,3632.6,3.0]
[1754033762358,0.1376,3632.8,3632.3,0.1376]
[1754033762543,2.75107418,3635.0,3632.3,0.1376]
[1754033762544,2.63990458,3635.5,3633.0,3.3025461]
[1754033762744,4.66794235,3638.7,3633.1,0.4979]
[1754033762745,1.85273046,3635.4,3633.1,0.4979]
[1754033763054,1.79511041,3635.3,3633.2,2.75238357]
[1754033763370,0.1376,3633.6,3633.5,2.75213368]
[1754033763662,0.1376,3633.6,3633.1,0.1376]
[1754033763869,0.1376,3633.6,3633.1,2.89006622]
[1754033764057,0.1376,3633.6,3633.5,3.0]
[1754033764263,0.1376,3633.6,3633.4,3.0]
[1754033764432,1.2254,3633.6,3633.1,0.1376]
[1754033764630,1.2254,3633.6,3633.1,2.89006166]
[1754033764845,0.1376,3633.3,3633.1,2.75246166]
[1754033765164,0.1376,3633.3,3633.0,3.0]
[1754033765165,0.1376,3633.3,3633.0,2.75253709]
[1754033765350,0.1376,3633.3,3633.2,3.0]
[1754033765727,0.1376,3633.3,3633.2,5.75239458]
[1754033765948,1.5432,3634.3,3633.2,3.0]
[1754033766141,0.15432,3634.2,3633.6,3.0]
[1754033766357,0.15432,3634.2,3633.2,2.75239103]
[1754033766358,0.1376,3633.6,3633.3,3.0]
[1754033766560,1.2254,3633.6,3633.3,2.75229718]
[1754033766756,0.1376,3633.6,3633.5,3.0]
[1754033766979,0.1376,3633.6,3633.3,3.0]
[1754033767176,0.1376,3633.6,3633.5,3.0]
[1754033767448,0.1376,3633.6,3633.1,0.1376]
[1754033768487,0.1376,3633.6,3633.4,2.75219759]
[1754033768846,0.1376,3633.6,3633.3,3.0]
[1754033769051,0.1376,3633.6,3633.3,2.75230903]
[1754033769297,0.1376,3633.6,3633.1,2.89005107]
[1754033769625,0.1376,3633.6,3633.2,2.7523339]
[1754033769886,0.1376,3633.3,3633.1,3.0]
[1754033770084,0.1376,3633.3,3633.1,2.75246015]
[1754033770282,0.1376,3633.3,3632.8,0.1376]
[1754033770283,0.1376,3633.3,3633.2,3.0]
[1754033771063,1.2254,3633.3,3632.8,0.1376]
[1754033771400,1.2254,3633.3,3632.3,0.20525226]
[1754033771401,1.5432,3633.2,3632.2,2.75310179]
[1754033771612,0.1376,3632.6,3632.2,0.2086681]
[1754033771761,0.1376,3632.6,3632.4,2.75293045]
[1754033772172,0.1376,3632.6,3632.5,2.75292498]
[1754033772402,0.1376,3632.7,3632.6,5.75281543]
[1754033772699,1.0878,3633.5,3632.8,2.75267274]
[1754033772880,0.1376,3632.9,3632.8,5.75267274]
[1754033773082,0.1376,3632.9,3632.8,17.75070194]
[1754033773282,1.0878,3633.8,3633.2,3.0]
[1754033773811,0.1376,3633.6,3633.3,2.75225874]
[1754033773994,0.1376,3633.6,3633.2,2.75237757]
[1754033774190,0.1376,3633.6,3633.3,2.75231098]
[1754033774509,0.1376,3633.6,3633.1,3.0]
[1754033774709,1.5432,3633.5,3633.0,3.0]
[1754033774909,1.5432,3633.5,3632.2,0.53966195]
[1754033774910,0.1376,3633.2,3632.7,3.0]
[1754033775214,1.5432,3633.1,3632.1,0.022]
[1754033775369,0.15432,3633.0,3632.1,0.022]
[1754033775570,0.001,3634.2,3632.1,0.022]
[1754033775571,1.5432,3632.9,3632.1,0.022]
[1754033775762,1.5432,3632.8,3632.1,0.022]
[1754033775999,1.0878,3632.7,3632.1,0.022]
[1754033776382,0.4554,3632.6,3632.1,0.022]
[1754033776804,1.0782,3632.5,3632.1,0.022]
[1754033776968,0.15336,3632.4,3632.1,0.022]
[1754033777164,0.58736,3632.4,3632.1,0.022]
[1754033777393,1.0782,3632.3,3632.1,0.022]
[1754033777580,1.5122,3632.3,3632.1,0.022]
[1754033777788,0.434,3632.2,3632.1,0.022]
[1754033778006,0.600556,3632.2,3632.1,0.022]
[1754033778168,1.5122,3632.2,3632.1,0.022]
[1754033779574,1.0782,3632.5,3632.1,0.022]
[1754033779904,0.434,3632.7,3632.1,0.022]
[1754033780110,0.55,3633.3,3632.1,0.022]
[1754033780111,1.5122,3632.4,3632.1,0.022]
[1754033780274,0.15122,3632.3,3632.1,0.022]
[1754033780469,1.5122,3632.3,3632.1,0.022]
[1754033780898,1.0782,3632.3,3632.1,0.022]
[1754033781385,1.5122,3632.7,3632.1,0.022]
[1754033781713,2.898,3634.2,3632.1,0.022]
[1754033781714,0.55,3633.6,3632.1,0.022]
[1754033781881,1.5122,3632.2,3632.1,0.022]
[1754033783118,1.0782,3632.2,3632.1,0.022]
[1754033783284,0.434,3632.7,3632.1,0.022]
[1754033783285,1.0782,3632.5,3632.1,0.022]
[1754033783612,1.0782,3633.0,3632.1,0.022]
[1754033783811,1.0782,3633.0,3632.2,3.0]
[1754033784016,1.22942,3633.0,3632.2,5.75314727]
[1754033784234,4.66794235,3634.1,3632.1,0.022]
[1754033784391,1.0782,3633.7,3632.9,3.0]
[1754033784591,1.0782,3634.0,3632.6,0.4979]
[1754033784806,1.0782,3634.0,3633.0,2.7524877]
[1754033785017,0.1376,3633.3,3633.1,3.0]
[1754033785217,0.1376,3633.3,3633.2,5.75239458]
[1754033785378,1.0782,3634.0,3633.4,3.0]
[1754033785726,0.001,3634.2,3634.1,2.75171294]
[1754033786019,0.001,3634.2,3634.1,6.21041294]
[1754033787308,0.001,3634.2,3634.1,5.75171294]
[1754033787509,1.0782,3635.6,3634.1,0.4587]
[1754033787721,1.0782,3635.6,3634.8,3.0]
[1754033787927,1.0782,3635.8,3634.5,3.0]
[1754033788421,1.0782,3635.8,3635.0,3.0]
[1754033788727,0.434,3636.2,3635.4,3.0]
[1754033788898,0.434,3636.2,3635.3,3.0]
[1754033789228,0.15132,3636.0,3635.3,3.0]
[1754033789523,1.0792,3636.1,3635.2,2.75083288]
[1754033789726,1.0792,3636.1,3635.3,2.75080461]
[1754033790042,0.001,3636.1,3635.7,2.7504353]
[1754033790330,0.001,3636.1,3635.2,3.0]
[1754033790496,0.001,3636.1,3636.0,2.75027502]
[1754033790900,0.001,3635.8,3633.3,2.75227677]
[1754033791211,0.001,3635.8,3634.5,3.0]
[1754033791533,0.001,3635.8,3634.7,3.0]
[1754033791828,0.001,3635.8,3635.2,3.0]
[1754033791995,0.001,3635.8,3635.2,2.75086089]
[1754033792186,0.001,3635.8,3635.4,3.0]
[1754033792384,0.001,3635.8,3634.5,0.4587]
[1754033792385,0.001,3635.8,3634.7,0.1799]
[1754033792583,1.5122,3635.7,3634.7,3.05441555]
[1754033792823,1.0782,3635.6,3633.9,0.2788]
[1754033793026,0.434,3635.5,3634.5,3.0]
[1754033793235,1.0782,3635.4,3634.5,3.0]
[1754033793402,1.0782,3635.4,3634.5,2.75139436]
[1754033793598,0.434,3635.3,3634.2,3.0]
[1754033793813,1.22942,3635.2,3634.2,3.0]
[1754033794183,1.22942,3635.2,3634.1,2.75165956]
[1754033794184,0.434,3635.1,3634.1,3.0]
[1754033794395,1.0782,3635.0,3633.4,0.4587]
[1754033794590,1.0782,3635.0,3633.8,3.0]
[1754033794802,1.0782,3635.4,3634.6,2.7512761]
[1754033795025,1.0782,3635.4,3634.1,3.0]
[1754033795026,1.0782,3635.4,3634.5,5.75139108]
[1754033795238,1.0782,3635.4,3634.5,2.75139108]
[1754033795439,0.131,3635.8,3634.6,3.02751334]
[1754033795729,0.1376,3635.3,3634.8,0.1376]
[1754033795951,1.2158,3635.3,3634.8,0.1376]
[1754033796099,1.0782,3635.3,3634.7,2.75123691]
[1754033796296,0.1376,3635.1,3634.7,2.75123691]
[1754033796501,0.1376,3635.1,3634.7,2.75119811]
[1754033796833,0.1376,3635.1,3634.8,3.0]
[1754033797201,0.1376,3635.1,3634.6,5.88889826]
[1754033797402,0.434,3635.7,3635.0,3.0]
[1754033797607,0.1376,3635.3,3635.0,2.75102552]
[1754033797808,1.2092,3635.8,3635.1,3.0]
[1754033798138,0.1376,3635.4,3635.2,5.75087476]
[1754033798303,0.131,3635.8,3635.7,5.75050196]
[1754033798832,0.131,3635.8,3635.7,6.02930196]
[1754033799038,0.131,3635.8,3635.7,6.16690196]
[1754033799425,0.131,3635.8,3635.7,6.32980196]
[1754033800103,0.131,3635.8,3635.7,6.87980196]
[1754033800303,0.001,3636.1,3636.0,2.75027502]
[1754033800503,0.001,3636.1,3636.0,17.27620632]
[1754033800918,0.001,3636.1,3636.0,17.85550632]
[1754033801137,0.001,3636.2,3636.1,6.30019938]
[1754033801337,0.001,3636.2,3636.1,6.74189938]
[1754033802039,1e-08,3636.5,3636.4,5.7499725]
[1754033802216,0.001,3636.6,3636.5,5.74989687]
[1754033802423,0.001,3636.6,3636.5,6.32919687]
[1754033803111,2.74779623,3639.3,3636.5,6.32919687]
[1754033803112,1.0782,3638.6,3636.9,2.74959443]
[1754033803307,1.0782,3638.6,3637.6,3.0]
[1754033803534,1.0782,3638.6,3638.2,0.1376]
[1754033803710,1.0782,3638.6,3638.2,2.88619405]
[1754033804042,1.5122,3638.5,3637.8,3.0]
[1754033804339,0.1376,3638.3,3637.8,3.1376]
[1754033804515,0.1376,3638.3,3637.8,0.1376]
[1754033804721,0.1376,3638.3,3637.1,3.0]
[1754033804722,1.5122,3638.2,3637.1,3.0]
[1754033804948,0.16498,3638.3,3637.1,0.1376]
[1754033804949,0.1376,3637.7,3637.1,0.1376]
[1754033805148,0.1376,3637.2,3636.3,2.75004812]
[1754033805318,1.5122,3637.6,3637.0,2.88706339]
[1754033805513,0.1376,3637.5,3637.0,0.1376]
[1754033805714,1.5122,3637.4,3637.0,0.1376]
[1754033805910,1.5122,3637.3,3637.0,0.1376]
[1754033806116,1.5122,3637.2,3637.0,0.1376]
[1754033806642,1.496,3637.1,3637.0,0.1376]
[1754033806844,1.6336,3637.1,3636.0,0.1376]
[1754033807046,0.1376,3636.5,3636.0,0.1376]
[1754033807353,0.1376,3636.3,3635.9,3.0]
[1754033807524,1.0423,3636.2,3635.9,2.75033894]
[1754033807923,1.0423,3636.9,3636.1,2.75013873]
[1754033808127,0.1376,3636.6,3636.1,0.1376]
[1754033808454,1.496,3636.5,3635.8,2.75035903]
[1754033808615,1.496,3636.5,3636.2,3.0]
[1754033808815,0.1376,3636.6,3636.0,5.7502572]
[1754033809155,0.1376,3636.7,3636.6,5.74982126]
[1754033809309,0.1376,3636.7,3635.6,3.02933395]
[1754033809310,0.1376,3636.9,3636.0,3.2788]
[1754033809514,0.001,3639.4,3636.8,3.0]
[1754033809515,1.0423,3637.6,3636.8,3.0]
[1754033809754,1.0423,3637.6,3637.5,3.0]
[1754033809930,1.0423,3637.6,3637.4,2.74915305]
[1754033809931,1.6336,3637.9,3637.7,3.0]
[1754033810256,1.0423,3637.8,3637.7,2.74898974]
[1754033810433,0.1376,3637.9,3637.8,3.0]
[1754033810631,0.5913,3637.9,3637.8,3.0]
[1754033811151,1.6336,3637.9,3637.8,3.0]
[1754033813077,1.79696,3637.9,3635.9,0.2788]
[1754033813374,1.79696,3637.9,3635.3,0.826331]
[1754033813375,0.1376,3637.2,3635.3,0.826331]
[1754033813652,0.1376,3636.3,3635.9,2.75029337]
[1754033813859,1.0423,3636.2,3635.8,0.1376]
[1754033814158,1.496,3636.1,3635.7,0.1376]
[1754033814356,1.496,3636.0,3635.5,0.20241476]
[1754033814527,1.1799,3635.9,3635.7,3.0]
[1754033814854,1.0423,3635.8,3635.5,3.0]
[1754033815056,0.5913,3635.9,3635.4,0.1376]
[1754033815216,1.0423,3635.7,3635.3,3.1376]
[1754033815424,1.0423,3635.6,3635.3,0.1376]
[1754033815837,1.0423,3635.6,3635.4,2.75072761]
[1754033816062,1.0423,3635.6,3635.3,2.88839937]
[1754033816229,0.4537,3635.8,3635.5,3.0]
[1754033816423,1.496,3635.8,3635.5,5.75064169]
[1754033816750,1.0423,3635.8,3635.7,3.0]
[1754033816949,1.0423,3635.8,3635.5,2.75062781]
[1754033817153,1.0423,3635.8,3635.4,2.75070669]
[1754033817321,1.0423,3635.7,3635.4,2.75071107]
[1754033817522,1.0423,3635.6,3635.5,3.0]
[1754033817824,1.0423,3635.6,3635.4,3.0]
[1754033818026,1.0423,3635.5,3635.4,3.0]
[1754033818221,0.1376,3635.7,3635.6,3.0]
[1754033818462,1.1799,3635.7,3635.6,3.0]
[1754033819040,0.1376,3635.7,3635.6,5.75057762]
[1754033819230,0.1376,3636.4,3635.7,3.0]
[1754033819574,0.1376,3636.0,3635.5,3.1376]
[1754033819741,1.496,3635.9,3635.5,3.1376]
[1754033819946,0.4537,3635.9,3635.8,3.0]
[1754033820161,0.4537,3635.9,3635.5,0.1376]
[1754033820344,0.4537,3635.9,3635.5,3.1376]
[1754033820545,0.1376,3636.0,3635.7,2.75049159]
[1754033820867,1.1799,3636.0,3635.7,3.0]
[1754033821057,1.1799,3636.0,3635.6,2.75056953]